Cogmind - Beta 16 *** ADVENTURER MODE // 2025.11.04 @ 07:59:45 Player: Jefffff Result: Destroyed by G-34 Mercenary with Small Laser Performance ------------- Evolutions (0) 0 Regions Visited (2) 400 Robots Destroyed (20) 100 Value Destroyed (434) 434 Prototype IDs (2) 40 Alien Tech Used (0) 0 Bonus (0) 0 TOTAL SCORE: 974 Bonus ------- None Cogmind --------- Core Integrity 0/250 Matter 241/300 Energy 156/160 System Corruption 0% Temperature Cool (6) Movement Rolling (115) Ox1 Location -10/Subcaves Parts ------- > --- POWER (1) -------- Light Nuclear Core > --- PROPULSION (2) --- Compact Wheel Compact Wheel > --- UTILITY (2) ------ High-capacity Storage Unit Core Shielding > --- WEAPON (2) ------- Subdweller Laser > --- INVENTORY (20) --- Aluminum Leg Wheel Wheel Improved Heat Sink Improved Heat Sink Large Battery (200) High-capacity Matter Pod (51) Improved Terrain Scanner Terrain Scan Processor Terrain Scan Processor Peak State ------------ > --- POWER ------------ Light Nuclear Core > --- PROPULSION ------- Compact Wheel Compact Wheel > --- UTILITY ---------- High-capacity Storage Unit Core Shielding > --- WEAPON ----------- Subdweller Laser > --- INVENTORY -------- Light Nuclear Core Aluminum Leg Wheel Wheel Improved Heat Sink Improved Heat Sink Large Battery High-capacity Matter Pod Improved Terrain Scanner Terrain Scan Processor Terrain Scan Processor [Rating: 11] Favorites ----------- Power Ion Engine Engine Ion Engine Power Core Light Nuclear Core Propulsion Aluminum Leg Leg Aluminum Leg Wheel Compact Wheel Utility Seismic Detector Device Seismic Detector Storage Medium Storage Unit Protection Core Shielding Weapon Medium Laser Energy Gun Medium Laser Ballistic Cannon Light Cannon Special Weapon Welding Torch Build | -11 -10 -10 ------- Run | Yrd Mat Sub Slots Evolved . | . . . Power . | . . . Propulsion . | . . . Utility . | . . . Weapon . | . . . Parts Attached 20 | 7 11 2 Power 3 | 1 1 1 Engine 1 | 1 . . Core 2 | . 1 1 Reactor . | . . . Propulsion 5 | 2 3 . Treads . | . . . Leg 3 | 2 1 . Wheel 2 | . 2 . Hover . | . . . Flight . | . . . Utility 6 | 2 4 . Device 1 | 1 . . Storage 3 | 1 2 . Processor . | . . . Hackware . | . . . Protection 2 | . 2 . Artifact . | . . . Weapon 6 | 2 3 1 Energy Gun 4 | 2 1 1 Energy Cannon . | . . . Ballistic Gun . | . . . Ballistic Cannon 1 | . 1 . Launcher . | . . . Special Weapon 1 | . 1 . Impact Weapon . | . . . Slashing Weapon . | . . . Piercing Weapon . | . . . Special Melee Weapon . | . . . Unidentified Prototypes . | . . . Parts Lost 11 | . 10 1 Power 2 | . 1 1 Propulsion 3 | . 3 . Utility 1 | . 1 . Weapon 5 | . 5 . Highest Loss Streak 6 | . 6 1 To Critical Strikes . | . . . Average Backups 9 | 1 9 10 Power 1 | . 1 . Propulsion 1 | . 1 3 Utility 5 | . 5 7 Weapon . | . . . Tool/Special . | . . . Unused Backups 11 | . 4 7 Power 2 | . 2 . Propulsion 1 | . . 1 Utility 8 | . 2 6 Weapon . | . . . Tool/Special . | . . . Average Slot Usage (%) 92 | . 96 74 Engine 11 | . 13 . Core 2 | . . 14 Leg 22 | . 26 . Wheel 5 | . . 28 Device 8 | . 10 . Storage 14 | . 14 14 Protection 5 | . 3 14 Energy Gun 19 | . 22 3 Ballistic Cannon 1 | . 2 . Peak Build Rating 11 | 7 9 11 Average Rating 7 | 5 7 9 On Entrance 5 | . 7 9 Avg Prop Armor Cover (%) . | . . . Naked Turns . | . . . Heaviest Build 51 | 15 51 50 Greatest Support 32 | 20 32 32 Greatest Overweight (x) 4 | . 4 1 Average Overweight (x) . | . . 1 Largest Inventory Capacity 20 | 8 20 20 Average Capacity 13 | 7 13 20 Most Carried 13 | 5 13 12 Average Carried 9 | 1 9 10 Final Capacity 20 | 8 20 20 Final Carried 11 | 4 11 10 Class Distribution -------------------- 100% | Mutant Dominant Class ---------------- Mutant | -10/Materials Mutant | -10/Subcaves Resources | -11 -10 -10 ----------- Run | Yrd Mat Sub Matter Collected 401 | 145 256 . Remotely . | . . . Salvage Created 619 | 142 434 43 Parts 43 | 11 30 2 Haulers Intercepted 1 | . 1 . Recyclers Shooed 1 | 1 . . Parts Field Recycled . | . . . Retrieved Matter . | . . . Parts Self-Destructed 2 | . . 2 Prevented . | . . . Parts Restored . | . . . Kills | -11 -10 -10 ------- Run | Yrd Mat Sub Combat Hostiles Destroyed 10 | . 9 1 Guns 6 | . 5 1 Cannons 2 | . 2 . AOE 1 | . 1 . Classes Destroyed 7 | 3 4 . Worker 2 | 2 . . Builder 3 | . 3 . Tunneler 2 | 2 . . Hauler 1 | . 1 . Recycler 1 | 1 . . Watcher 1 | . 1 . Grunt 10 | . 9 1 Best Kill Streak 5 | 2 5 1 Combat Bots Only 3 | . 3 1 Max Kills in Single Turn 1 | 1 1 1 Gunslinging . | . . . Exploded 1 | . 1 . Melee . | . . . Uniques/NPCs Destroyed . | . . . Combat | -11 -10 -10 -------- Run | Yrd Mat Sub Hostile Shots Fired 133 | . 129 4 Missed 38 | . 37 1 Hits 95 | . 92 3 Projectile 95 | . 92 3 Critical Strikes 2 | . 2 . Damage Taken 1060 | . 1029 31 Core 253 | . 246 7 Absorbed by Shields . | . . . Redirected to Shielding 44 | . 43 1 Ignored by Resistances 317 | . 307 10 Core Remaining (%) 100 | 100 . . Volleys Fired 60 | 9 47 4 Largest 2 | 2 2 1 Hottest 90 | 90 90 60 Shots Fired 97 | 18 75 4 Gun 79 | 18 57 4 Cannon 16 | . 16 . Launcher . | . . . Special 2 | . 2 . Kinetic 16 | . 16 . Thermal 49 | 9 36 4 Explosive . | . . . Electromagnetic 32 | 9 23 . Robot Hit Streak 15 | 6 15 4 Robot Miss Streak 4 | 4 3 . Penetration Max . | . . . Secondary Targets . | . . . Shots Hit Robots 69 | 11 54 4 Core Hits 30 | 6 22 2 Critical Kills . | . . . Critical Parts Destroyed . | . . . Critical Strikes 3 | . 3 . Burn 1 | . 1 . Blast 2 | . 2 . Melee Attacks . | . . . Impact . | . . . Slashing . | . . . Piercing . | . . . Sneak Attacks . | . . . Combat Hostiles . | . . . Follow-up Attacks . | . . . Damage Inflicted 1478 | 147 1247 84 Guns 809 | 147 578 84 Cannons 248 | . 248 . Explosions 419 | . 419 . Melee . | . . . Ramming . | . . . Kinetic 248 | . 248 . Thermal 864 | 49 731 84 Explosive . | . . . Electromagnetic 366 | 98 268 . Impact . | . . . Slashing . | . . . Piercing . | . . . Highest Corruption . | . . . Average Corruption . | . . . Corruption Purged . | . . . Corruption Blocked . | . . . Overload Shots . | . . . Overflow Damage . | . . . Projectiles . | . . . Explosions . | . . . Melee . | . . . Knockbacks 5 | . 5 . Impact . | . . . Kinetic 5 | . 5 . Secondary . | . . . Self-Inflicted Damage . | . . . Shots . | . . . Rammed . | . . . Targets Rammed . | . . . Kicked . | . . . Crushed . | . . . Highest Temperature 468 | 150 468 . Average Temperature 130 | 56 146 . Received Heat Transfer 863 | . 842 21 Effects 9 | . 9 . Shutdowns 1 | . 1 . Energy Bleed 3 | . 3 . Interference 2 | . 2 . Damage (major) 3 | . 3 . Siege Activations . | . . . Martial Activations . | . . . Shielding Activations . | . . . Robots Disrupted . | . . . Combat Hostiles . | . . . Robots Corrupted . | . . . Combat Hostiles . | . . . Parts Fried . | . . . Impact Corruptions . | . . . Robots Melted 1 | . 1 . Combat Hostiles 1 | . 1 . Parts Melted 2 | 1 1 . Heat Transferred 1848 | 148 1600 100 Parts Sabotaged . | . . . Parts Stolen . | . . . Parts Stripped . | . . . Power Chain Reactions 4 | . 4 . Alert | -11 -10 -10 ------- Run | Yrd Mat Sub Maximum Alert Level . | . . . Low Security (%) 100 | 100 100 . Level 1 . | . . . Level 2 . | . . . Level 3 . | . . . Level 4 . | . . . Level 5 . | . . . High Security . | . . . Max Security . | . . . Peak Influence 131 | 10 131 . Initial 5 | . 5 . Average 37 | . 42 . Influence Increases 373 | 25 318 30 Destroy 0b10 Robot/C 200 | . 180 20 Destroy 0b10 Robot/NC 50 | 25 25 . Destroy Leader 44 | . 34 10 Successful Hack 10 | . 10 . Select Force Hacks 30 | . 30 . Destroy Structure 9 | . 9 . Lose Combat Pursuer 30 | . 30 . Influence Decreases 343 | 15 307 21 Entered New Map 17 | . 5 12 Time Decay 226 | 15 202 9 Lost Part 100 | . 100 . Squads Dispatched 1 | . 1 . Investigation 1 | . 1 . Extermination . | . . . Reinforcement . | . . . Assault . | . . . Garrison . | . . . Intercept . | . . . Searches Triggered . | . . . Construction Impeded . | . . . Haulers Reinforced . | . . . Active Scanning Responses . | . . . Cargo Convoy Interrupts . | . . . Stealth | -11 -10 -10 --------- Run | Yrd Mat Sub Distress Signals . | . . . Communications Jammed . | . . . Distress Signals . | . . . Times Spotted 23 | . 21 2 Peak Tracking Total 6 | . 6 2 Tactical Retreats 2 | . 2 . Traps | -11 -10 -10 ------- Run | Yrd Mat Sub Traps Triggered . | . . . Indirectly . | . . . Trap Hack Attempts . | . . . Triggered . | . . . Disarmed . | . . . Reprogrammed . | . . . Reused . | . . . Traps Extracted . | . . . Installed . | . . . Triggered . | . . . Machines | -11 -10 -10 ---------- Run | Yrd Mat Sub Machines Disabled . | . . . Max in Single Turn . | . . . Machines Repaired . | . . . Machines Dismantled . | . . . Machines Sabotaged . | . . . Overloaded Fab Kills . | . . . Hacking | -11 -10 -10 --------- Run | Yrd Mat Sub Machines Accessed 8 | . 8 . Terminals 6 | . 6 . Fabricators . | . . . Repair Stations . | . . . Recycling Units 2 | . 2 . Scanalyzers . | . . . Garrison Access . | . . . Total Hacks 19 | . 19 . Successful 11 | . 11 . Failed 8 | . 8 . Catastrophic . | . . . Database Lockouts . | . . . Manual 18 | . 18 . Terminals 17 | . 17 . Fabricators . | . . . Repair Stations . | . . . Recycling Units 2 | . 2 . Scanalyzers . | . . . Garrison Access . | . . . Terminal Hacks 4 | . 4 . Part Schematic 2 | . 2 . Prototype ID Bank 1 | . 1 . Terminal Index 1 | . 1 . Fabricator Hacks . | . . . Repair Station Hacks . | . . . Recycling Unit Hacks . | . . . Scanalyzer . | . . . Garrison Access Hacks . | . . . Unauthorized Hacks 7 | . 7 . Terminals 5 | . 5 . Botnet 5 | . 5 . Fabricators . | . . . Repair Stations . | . . . Recycling Units 2 | . 2 . Recyclers 1 | . 1 . Tunnel 1 | . 1 . Scanalyzers . | . . . Garrison Access . | . . . Data Cores Recovered . | . . . Used . | . . . Hacking Detections 5 | . 5 . Full Trace Events . | . . . Feedback Events . | . . . Feedback Blocked . | . . . Robot Schematics Acquired . | . . . Robots Built . | . . . Authchips . | . . . Time . | . . . Total Robot Build Rating . | . . . Part Schematics Acquired 2 | . 2 . Parts Built . | . . . Authchips . | . . . Time . | . . . Total Part Build Rating . | . . . Part Studies Acquired . | . . . Parts Repaired . | . . . Time . | . . . Parts Recycled . | . . . Recycled Matter . | . . . Retrieved Matter . | . . . Retrieved Components . | . . . Parts Scanalyzed . | . . . Part Schematics Acquired . | . . . Parts Damaged . | . . . Bothacking | -11 -10 -10 ------------ Run | Yrd Mat Sub Used RIF Installer . | . . . Robots Hacked . | . . . Non-combat . | . . . Combat . | . . . Robot Hacks Applied . | . . . Relay Couplers Released . | . . . Fabnet Peak Effective % . | . . . Robots Rewired . | . . . Allies Hacked . | . . . Hacks Repelled . | . . . Allies | -11 -10 -10 -------- Run | Yrd Mat Sub Total Allies . | . . . Largest Group . | . . . Highest-Rated Group . | . . . Highest-Rated Ally . | . . . Total Orders . | . . . Ally Attacks . | . . . Total Damage . | . . . Kills . | . . . Allies Corrupted . | . . . Allies Melted . | . . . Intel | -11 -10 -10 ------- Run | Yrd Mat Sub Active Infowar (turns) 586 | 34 552 . Seismic 586 | 34 552 . Robot Analysis Total . | . . . Derelict Logs Recovered . | . . . Drone Launches . | . . . Drone Recoveries . | . . . Exploration | -11 -10 -10 ------------- Run | Yrd Mat Sub Turns Passed 1022 | 107 761 154 Spaces Moved 578 | 59 432 87 Core 11 | 11 . . Treads . | . . . Legs 467 | 48 419 . Wheels 100 | . 13 87 Hover . | . . . Flight . | . . . Fastest Speed 50 | 50 115 115 Average Speed 130 | 106 137 115 Slowest Speed 400 | 120 400 115 Overloaded Moves . | . . . Propulsion Burnouts . | . . . Robots Hopped . | . . . Potential Cave-ins . | . . . Cave-ins Triggered . | . . . Exploration Rate (%) 25 | 5 65 7 Regions Visited 2 Branch Regions 1 Pre-discovered Areas 1 | . 1 . Known Exits Taken . | . . . Unknown Exits Taken 2 | 1 1 . Scrap Searched . | . . . Spaces Dug . | . . . Terrain Destroyed 9 | . 9 . Melee . | . . . Projectile . | . . . AOE 9 | . 9 . Terrain Rammed . | . . . Walls Destroyed . | . . . Machines Disabled . | . . . Actions | -11 -10 -10 --------- Run | Yrd Mat Sub Total 749 | 85 527 137 Wait 56 | . 13 43 Move 576 | 58 431 87 Hop . | . . . Pick Up 30 | 11 18 1 Fast Attach 2 | . 2 . Attach 15 | 7 6 2 Detach . | . . . Swap 3 | . 3 . Drop 7 | . 7 . Fire 60 | 9 47 4 Melee . | . . . Ram . | . . . Kick . | . . . Crush . | . . . Escape Stasis . | . . . Rewire . | . . . Trap . | . . . Miscellaneous . | . . . Route ------- -11/Scrapyard -10/Materials (discovered 5 exits: [*Mat x2] / [*Min x2] / [*Sub]) -10/Subcaves (discovered 1 exit: [*Mat]) History --------- Turn | Location | Event 7 | -11/Scrapyard | Discovered new exit (range 16) 108 | -11/Scrapyard | Entered Materials 278 | -10/Materials | Discovered new exit (range 16) 310 | -10/Materials | Build established: Mutant 428 | -10/Materials | Discovered new exit (range 8) 532 | -10/Materials | Discovered new exit (range 11) 591 | -10/Materials | Discovered new exit (range 15) 728 | -10/Materials | Lost 3 parts (1n1u1w) 808 | -10/Materials | Derelicts attacked the area 840 | -10/Materials | Core integrity fell below 50% 854 | -10/Materials | Core integrity fell below 20% 856 | -10/Materials | Discovered new exit (range 11) 869 | -10/Materials | Entered Subcaves 870 | -10/Subcaves | Approached by a straggling Scientist 872 | -10/Subcaves | Discovered new exit (range 13) 878 | -10/Subcaves | Lost 6 parts (1p2n3w) 968 | -10/Subcaves | Shifting Twisted Machinery released Sub. Laser 986 | -10/Subcaves | Shifting Twisted Machinery released Battle Cannon 1023 | -10/Subcaves | Destroyed by G-34 Mercenary with Small Laser Last Messages --------------- 00870_ 37-8GY(c): "Thank the algorithms! I was beginning to lose hope I'd never make it past all the Subs lurking out here." 00872_ EXIT=FOUND 00873_ 37-8GY(c): "Hey, let me tag along and I can get us both out of this nasty situation. At least I think I can... The group I got separated from was talking about a shortcut back to the UFD." 37-8GY(c): "I think it's somewhere east of here" Sub. Laser falls loose from the Twisted Machinery. 37-8GY(c): "I think it's somewhere east of here" 00980_ Acquired Sub. Laser. Battle Cannon falls loose from the Twisted Machinery. 01001_ Lgt. Nuclear Core destroyed. 01011_ G-47 Trooper destroyed. 01016_ 37-8GY(c) destroyed. 01020_ Subatomizers dissect the Particle Gun. Map ----- +----------------------------------------------------+ | ?????????????????????????????????????????????????? | | ?????????????????????????????????????????????????? | | ?????????????????????????????????????????????????? | | ?????????????????????????????????????????????????? | | ?????????????????????????????????????????????????? | | ?????????????????????????????????????????????????? | | ?????????????????????????????????????????????????? | | ?????????????????????????????????????????????????? | | ?????????????????????????????????????????????????? | | ?????????????????????????????????????????????????? | | ?????????????????????????????????????????????????? | | ?????????????????????????????????????????????????? | | ?????????????????????????????????????????????????? | | ?????????????????????????????????????????????????? | | ?????????????????????????????????????????????????? | | ?????????????????????????????????????????????????? | | ?????????????????????????????????????????????????? | | ???????????????????#?????????????????????????????? | | ????????????###??? ##?????????????????#??????????? | | ????????????# #### #??####?????????? #??????????? | | #???????????# ## ##### #????????? #??????????? | | #??????###### ### ## ##??###### "##?????????? | | #?????## ## #### #?????????? | | ##????# =g* %[ #?????????? | | ###### ## " " ="""" #?????????? | | # ## # #### @ ##" """" ##?????????? | | ##?# # """"" #??????????? | | ### # # ##?# ##""" ?????????? | | ##?########??## ## " "????????? | | ??????????????# ## ###" ]"#???????? | | ??????????????# #### #??##?# "##???????? | | ??????????????# ##??### "# #????? ##????????? | | ??????????????## ##?????######??????#?????????? | | ???????????????######????????????????????????????? | | ?????????????????????????????????????????????????? | | ?????????????????????????????????????????????????? | | ?????????????????????????????????????????????????? | | ?????????????????????????????????????????????????? | | ?????????????????????????????????????????????????? | | ?????????????????????????????????????????????????? | | ?????????????????????????????????????????????????? | | ?????????????????????????????????????????????????? | | ?????????????????????????????????????????????????? | | ?????????????????????????????????????????????????? | | ?????????????????????????????????????????????????? | | ?????????????????????????????????????????????????? | | ?????????????????????????????????????????????????? | | ?????????????????????????????????????????????????? | | | | | +----------------------------------------------------+ Best States ------------- Heat Dissipation 25 Energy Generation 14 Energy Capacity 250 Matter Stores 300 Matter Capacity 300 Sight Range 16 Terrain Scan Density 10 Resistance: KI 20 Resistance: TH 20 Resistance: EX 20 Resistance: EM 20 Resistance: I 20 Resistance: S 20 Resistance: P 20 Core Shielding 20 Evasion (%) 55 Offensive Hacking 10 Item Schematics ----------------- Cargo Storage Unit | -10/Materials | Hacked Huge Storage Unit | -10/Materials | Hacked Robot Schematics ------------------ None Fabricated ------------ Nothing Repaired ---------- Nothing Studied --------- None Alien Tech Used ----------------- None Achievements -------------- None Challenges ------------ None Game ------ Seed MachineScrapoidFragment Manual? 0 Play Time 00:09:31 Cumulative 261.2 hours Start 2025.11.04 @ 07:51:07 End 2025.11.04 @ 07:59:45 Sessions 1 Manual Loads 0 Difficulty Adventurer Special Mode None Game No. 302 Rogue 0 Adventurer 302 Explorer 0 Win Type - Total 0 Types 0/0/0/0/0/0/0/0/0/0 Lore% 73 Gallery% 59 Achievement% 31 Wizard Run 0 Options --------- Layout 2 ASCII 0 Keyboard 0 Movement Mouse Keybinds 0 Fullscreen 2 Font 48/Smallcaps Map View 50x44 Zoom Use 0% Tactical HUD 1 Map Filters NONE Filters NONE Steam 1 RUN: 7fd50470-2c57-41ec-95a2-8510d4f64b10